[Event "Titled Tuesday Blitz February 07 Early 2023"]
[White "Necula, Iulian"]
[Black "Smietanska, Wiktoria"]
[WhiteFideId "1232380"]
[BlackFideId "21869359"]
[WhiteElo "1851"]
[BlackElo "1936"]
[Result "1/2-1/2"]
[Round "11"]
[TimeControl "180+2"]
[Date "2023.02.07"]
[WhiteClock "0:00:06"]
[BlackClock "0:00:04"]

1. d4 {[%clk 0:03:00]}  Nf6 {[%clk 0:02:51]} 2. Nc3 {[%clk 0:03:00]}  d5 {[%clk 0:02:50]} 3. Bf4 {[%clk 0:02:59]}  c5 {[%clk 0:02:49]} 4. e4 {[%clk 0:02:58]}  cxd4 {[%clk 0:02:32]} 5. Qxd4 {[%clk 0:02:58]}  Nc6 {[%clk 0:02:31]} 6. Bb5 {[%clk 0:02:56]}  Bd7 {[%clk 0:02:15]} 7. Bxc6 {[%clk 0:02:55]}  Bxc6 {[%clk 0:02:12]} 8. e5 {[%clk 0:02:55]}  Ne4 {[%clk 0:02:00]} 9. O-O-O {[%clk 0:02:43]}  Nxc3 {[%clk 0:01:58]} 10. Qxc3 {[%clk 0:02:43]}  Rc8 {[%clk 0:01:48]} 11. Qe3 {[%clk 0:02:36]}  e6 {[%clk 0:01:39]} 12. Kb1 {[%clk 0:02:30]}  Qa5 {[%clk 0:01:36]} 13. Ne2 {[%clk 0:02:18]}  Ba4 {[%clk 0:01:21]} 14. Nd4 {[%clk 0:02:10]}  Bc5 {[%clk 0:01:17]} 15. b3 {[%clk 0:02:10]}  Bd7 {[%clk 0:01:10]} 16. Qe1 {[%clk 0:01:42]}  Bb4 {[%clk 0:01:06]} 17. Bd2 {[%clk 0:01:42]}  Bxd2 {[%clk 0:00:57]} 18. Qxd2 {[%clk 0:01:43]}  Qc5 {[%clk 0:00:51]} 19. f4 {[%clk 0:01:30]}  a5 {[%clk 0:00:51]} 20. Rhf1 {[%clk 0:01:05]}  a4 {[%clk 0:00:49]} 21. b4 {[%clk 0:01:03]}  Qc4 {[%clk 0:00:35]} 22. a3 {[%clk 0:00:59]}  O-O {[%clk 0:00:32]} 23. g4 {[%clk 0:00:56]}  Qc3 {[%clk 0:00:30]} 24. Qxc3 {[%clk 0:00:52]}  Rxc3 {[%clk 0:00:31]} 25. Kb2 {[%clk 0:00:52]}  Rfc8 {[%clk 0:00:30]} 26. Rd2 {[%clk 0:00:52]}  R3c4 {[%clk 0:00:24]} 27. f5 {[%clk 0:00:47]}  Rc3 {[%clk 0:00:09]} 28. Rg1 {[%clk 0:00:40]}  Re3 {[%clk 0:00:08]} 29. Re2 {[%clk 0:00:31]}  Rcc3 {[%clk 0:00:07]} 30. Rxe3 {[%clk 0:00:31]}  Rxe3 {[%clk 0:00:07]} 31. fxe6 {[%clk 0:00:31]}  fxe6 {[%clk 0:00:07]} 32. Rd1 {[%clk 0:00:21]}  Rxe5 {[%clk 0:00:07]} 33. c4 {[%clk 0:00:22]}  dxc4 {[%clk 0:00:04]} 34. Nf3 {[%clk 0:00:22]}  Rd5 {[%clk 0:00:03]} 35. Re1 {[%clk 0:00:21]}  Kf7 {[%clk 0:00:03]} 36. Ne5+ {[%clk 0:00:20]}  Ke7 {[%clk 0:00:03]} 37. Nxc4 {[%clk 0:00:21]}  b5 {[%clk 0:00:02]} 38. Nb6 {[%clk 0:00:21]}  Rd2+ {[%clk 0:00:02]} 39. Kc3 {[%clk 0:00:20]}  Rxh2 {[%clk 0:00:03]} 40. Nxd7 {[%clk 0:00:19]}  Kxd7 {[%clk 0:00:04]} 41. Re5 {[%clk 0:00:19]}  Rh3+ {[%clk 0:00:02]} 42. Kb2 {[%clk 0:00:20]}  Rb3+ {[%clk 0:00:02]} 43. Ka2 {[%clk 0:00:20]}  Kd6 {[%clk 0:00:02]} 44. Rxb5 {[%clk 0:00:20]}  e5 {[%clk 0:00:03]} 45. Rb6+ {[%clk 0:00:18]}  Kd5 {[%clk 0:00:03]} 46. Rb7 {[%clk 0:00:18]}  h6 {[%clk 0:00:01]} 47. Rxg7 {[%clk 0:00:19]}  Rg3 {[%clk 0:00:02]} 48. Rh7 {[%clk 0:00:15]}  Rg2+ {[%clk 0:00:02]} 49. Kb1 {[%clk 0:00:14]}  Rxg4 {[%clk 0:00:02]} 50. Rxh6 {[%clk 0:00:14]}  Rg2 {[%clk 0:00:02]} 51. Rh8 {[%clk 0:00:12]}  Kc4 {[%clk 0:00:02]} 52. b5 {[%clk 0:00:04]}  Kxb5 {[%clk 0:00:02]} 53. Re8 {[%clk 0:00:03]}  Re2 {[%clk 0:00:02]} 54. Kc1 {[%clk 0:00:03]}  Kc4 {[%clk 0:00:02]} 55. Kd1 {[%clk 0:00:04]}  Ra2 {[%clk 0:00:02]} 56. Rxe5 {[%clk 0:00:04]}  Rxa3 {[%clk 0:00:02]} 57. Kc2 {[%clk 0:00:04]}  Ra2+ {[%clk 0:00:03]} 58. Kb1 {[%clk 0:00:04]}  Rh2 {[%clk 0:00:03]} 59. Re4+ {[%clk 0:00:04]}  Kb3 {[%clk 0:00:03]} 60. Re3+ {[%clk 0:00:04]}  Kb4 {[%clk 0:00:03]} 61. Re4+ {[%clk 0:00:05]}  Kb3 {[%clk 0:00:03]} 62. Re3+ {[%clk 0:00:05]}  Kc4 {[%clk 0:00:04]} 63. Re4+ {[%clk 0:00:06]}  Kb3 {[%clk 0:00:04]} 1/2-1/2


[Site "https://www.chess.com"]

[Event "Titled Tuesday Blitz February 07 Early 2023"]
[White "aidenzhouu"]
[Black "Quirke, Jeffrey"]
[BlackFideId "2013029"]
[WhiteElo "2416"]
[BlackElo "2007"]
[Result "0-1"]
[Round "11"]
[TimeControl "180+2"]
[Date "2023.02.07"]
[WhiteClock "0:02:26"]
[BlackClock "0:02:08"]

1. d4 {[%clk 0:02:56]}  Nf6 {[%clk 0:02:57]} 2. c4 {[%clk 0:02:55]}  g6 {[%clk 0:02:54]} 3. Nc3 {[%clk 0:02:54]}  d5 {[%clk 0:02:55]} 4. cxd5 {[%clk 0:02:54]}  Nxd5 {[%clk 0:02:55]} 5. e4 {[%clk 0:02:54]}  Nxc3 {[%clk 0:02:56]} 6. bxc3 {[%clk 0:02:55]}  Bg7 {[%clk 0:02:56]} 7. Be3 {[%clk 0:02:55]}  c5 {[%clk 0:02:55]} 8. Qd2 {[%clk 0:02:55]}  Qa5 {[%clk 0:02:55]} 9. Rc1 {[%clk 0:02:55]}  cxd4 {[%clk 0:02:55]} 10. cxd4 {[%clk 0:02:56]}  Qxd2+ {[%clk 0:02:55]} 11. Bxd2 {[%clk 0:02:57]}  O-O {[%clk 0:02:52]} 12. Nf3 {[%clk 0:02:57]}  Rd8 {[%clk 0:02:51]} 13. d5 {[%clk 0:02:47]}  e6 {[%clk 0:02:49]} 14. d6 {[%clk 0:02:46]}  Nc6 {[%clk 0:02:47]} 15. Bf4 {[%clk 0:02:31]}  e5 {[%clk 0:02:43]} 16. Bg5 {[%clk 0:02:31]}  Rxd6 {[%clk 0:02:43]} 17. Bc4 {[%clk 0:02:32]}  Be6 {[%clk 0:02:14]} 18. O-O {[%clk 0:02:31]}  Bxc4 {[%clk 0:02:13]} 19. Rxc4 {[%clk 0:02:32]}  f6 {[%clk 0:02:11]} 20. Be3 {[%clk 0:02:32]}  Rad8 {[%clk 0:02:09]} 21. Rb1 {[%clk 0:02:26]}  Rd1+ {[%clk 0:02:08]} 0-1


[Site "https://www.chess.com"]

[Event "Titled Tuesday Blitz February 07 Early 2023"]
[White "Soham Kamotra"]
[Black "MunichMouse"]
[WhiteFideId "46647490"]
[WhiteElo "2319"]
[BlackElo "2237"]
[Result "1-0"]
[Round "11"]
[TimeControl "180+2"]
[Date "2023.02.07"]
[WhiteClock "0:01:08"]
[BlackClock "0:01:20"]

1. b3 {[%clk 0:01:40]}  Nf6 {[%clk 0:02:58]} 2. Bb2 {[%clk 0:01:41]}  e6 {[%clk 0:02:59]} 3. c4 {[%clk 0:01:41]}  Be7 {[%clk 0:02:59]} 4. g3 {[%clk 0:01:41]}  O-O {[%clk 0:02:59]} 5. Bg2 {[%clk 0:01:42]}  c5 {[%clk 0:03:00]} 6. Nf3 {[%clk 0:01:42]}  d5 {[%clk 0:03:00]} 7. cxd5 {[%clk 0:01:42]}  exd5 {[%clk 0:03:00]} 8. O-O {[%clk 0:01:42]}  d4 {[%clk 0:03:01]} 9. e3 {[%clk 0:01:40]}  d3 {[%clk 0:02:58]} 10. Nc3 {[%clk 0:01:39]}  Nc6 {[%clk 0:02:58]} 11. Rc1 {[%clk 0:01:37]}  Bf5 {[%clk 0:02:58]} 12. Na4 {[%clk 0:01:37]}  b6 {[%clk 0:02:57]} 13. Ne5 {[%clk 0:01:36]}  Nb4 {[%clk 0:02:49]} 14. a3 {[%clk 0:01:33]}  Nbd5 {[%clk 0:02:44]} 15. Nc6 {[%clk 0:01:30]}  Qd6 {[%clk 0:02:35]} 16. Nxe7+ {[%clk 0:01:30]}  Nxe7 {[%clk 0:02:36]} 17. Bxa8 {[%clk 0:01:23]}  Rxa8 {[%clk 0:02:35]} 18. Qf3 {[%clk 0:01:24]}  Be4 {[%clk 0:02:33]} 19. Qf4 {[%clk 0:01:22]}  Qxf4 {[%clk 0:01:56]} 20. gxf4 {[%clk 0:01:23]}  Bf3 {[%clk 0:01:57]} 21. Bxf6 {[%clk 0:01:19]}  gxf6 {[%clk 0:01:56]} 22. h3 {[%clk 0:01:20]}  Nf5 {[%clk 0:01:52]} 23. Kh2 {[%clk 0:01:19]}  Kf8 {[%clk 0:01:52]} 24. b4 {[%clk 0:01:18]}  cxb4 {[%clk 0:01:46]} 25. axb4 {[%clk 0:01:19]}  Ke7 {[%clk 0:01:46]} 26. Rc7+ {[%clk 0:01:18]}  Ke6 {[%clk 0:01:45]} 27. Rfc1 {[%clk 0:01:16]}  Rg8 {[%clk 0:01:36]} 28. Rg1 {[%clk 0:01:15]}  Ra8 {[%clk 0:01:35]} 29. e4 {[%clk 0:01:11]}  Bxe4 {[%clk 0:01:27]} 30. Re1 {[%clk 0:01:11]}  Kd6 {[%clk 0:01:28]} 31. Rxf7 {[%clk 0:01:08]}  Bf3 {[%clk 0:01:20]} 32. Rxf6+ {[%clk 0:01:08]} 1-0